[Event "Titled Tuesday Blitz January 17 Late 2023"]
[White "Rios Escobar, Adan"]
[Black "Sukandar, Irine Kharisma"]
[WhiteFideId "3403645"]
[BlackFideId "7101937"]
[WhiteElo "2234"]
[BlackElo "2390"]
[Result "0-1"]
[Round "02"]
[TimeControl "180+2"]
[Date "2023.01.17"]
[WhiteClock "0:00:02"]
[BlackClock "0:00:25"]

1. d4 {[%clk 0:02:55]}  Nf6 {[%clk 0:02:59]} 2. g3 {[%clk 0:02:54]}  c5 {[%clk 0:02:58]} 3. d5 {[%clk 0:02:54]}  g6 {[%clk 0:02:55]} 4. c4 {[%clk 0:02:53]}  Bg7 {[%clk 0:02:55]} 5. Nc3 {[%clk 0:02:52]}  O-O {[%clk 0:02:54]} 6. Bg2 {[%clk 0:02:53]}  d6 {[%clk 0:02:53]} 7. Nf3 {[%clk 0:02:53]}  e5 {[%clk 0:02:46]} 8. e4 {[%clk 0:02:45]}  Bg4 {[%clk 0:02:36]} 9. O-O {[%clk 0:02:43]}  Qd7 {[%clk 0:02:30]} 10. Qc2 {[%clk 0:02:24]}  Na6 {[%clk 0:02:30]} 11. a3 {[%clk 0:02:24]}  Nc7 {[%clk 0:02:29]} 12. Rb1 {[%clk 0:02:17]}  b5 {[%clk 0:02:25]} 13. cxb5 {[%clk 0:02:15]}  Nxb5 {[%clk 0:02:24]} 14. Nxb5 {[%clk 0:02:15]}  Qxb5 {[%clk 0:02:24]} 15. h3 {[%clk 0:02:11]}  Bd7 {[%clk 0:02:18]} 16. Re1 {[%clk 0:02:08]}  Rab8 {[%clk 0:02:16]} 17. Bf1 {[%clk 0:02:08]}  Qa4 {[%clk 0:01:57]} 18. Bd3 {[%clk 0:01:20]}  Qxc2 {[%clk 0:01:53]} 19. Bxc2 {[%clk 0:01:21]}  Bxh3 {[%clk 0:01:52]} 20. b4 {[%clk 0:01:19]}  Rfc8 {[%clk 0:01:36]} 21. Ba4 {[%clk 0:01:08]}  Bg4 {[%clk 0:01:33]} 22. Nd2 {[%clk 0:01:03]}  c4 {[%clk 0:01:31]} 23. Bc6 {[%clk 0:01:00]}  Bd7 {[%clk 0:01:29]} 24. b5 {[%clk 0:00:54]}  c3 {[%clk 0:01:30]} 25. Nc4 {[%clk 0:00:53]}  Bxc6 {[%clk 0:01:30]} 26. dxc6 {[%clk 0:00:43]}  Nxe4 {[%clk 0:01:19]} 27. Rxe4 {[%clk 0:00:27]}  d5 {[%clk 0:01:20]} 28. Rxe5 {[%clk 0:00:14]}  dxc4 {[%clk 0:01:19]} 29. Rc5 {[%clk 0:00:11]}  c2 {[%clk 0:01:04]} 30. Rb4 {[%clk 0:00:09]}  Rd8 {[%clk 0:01:02]} 31. c7 {[%clk 0:00:06]}  Rd1+ {[%clk 0:01:01]} 32. Kg2 {[%clk 0:00:07]}  Rc8 {[%clk 0:01:02]} 33. Bf4 {[%clk 0:00:06]}  c1=Q {[%clk 0:00:57]} 34. Bxc1 {[%clk 0:00:06]}  Rxc1 {[%clk 0:00:58]} 35. Rbxc4 {[%clk 0:00:06]}  Rxc4 {[%clk 0:00:58]} 36. Rxc4 {[%clk 0:00:07]}  Be5 {[%clk 0:00:58]} 37. a4 {[%clk 0:00:06]}  Rxc7 {[%clk 0:00:58]} 38. Re4 {[%clk 0:00:04]}  Bc3 {[%clk 0:00:57]} 39. Re8+ {[%clk 0:00:03]}  Kg7 {[%clk 0:00:56]} 40. Rb8 {[%clk 0:00:04]}  Ba5 {[%clk 0:00:55]} 41. Kf3 {[%clk 0:00:04]}  Bb6 {[%clk 0:00:55]} 42. Kg2 {[%clk 0:00:02]}  Rc2 {[%clk 0:00:55]} 43. Kg1 {[%clk 0:00:02]}  Bxf2+ {[%clk 0:00:54]} 44. Kf1 {[%clk 0:00:02]}  Bb6 {[%clk 0:00:54]} 45. g4 {[%clk 0:00:02]}  Ra2 {[%clk 0:00:54]} 46. a5 {[%clk 0:00:01]}  Rxa5 {[%clk 0:00:54]} 47. Rb7 {[%clk 0:00:02]}  Rxb5 {[%clk 0:00:54]} 48. g5 {[%clk 0:00:03]}  Rxg5 {[%clk 0:00:53]} 49. Ke2 {[%clk 0:00:04]}  Rd5 {[%clk 0:00:53]} 50. Kf3 {[%clk 0:00:04]}  h5 {[%clk 0:00:53]} 51. Kg2 {[%clk 0:00:05]}  h4 {[%clk 0:00:53]} 52. Kh1 {[%clk 0:00:06]}  h3 {[%clk 0:00:45]} 53. Kh2 {[%clk 0:00:06]}  Rd3 {[%clk 0:00:44]} 54. Kh1 {[%clk 0:00:05]}  g5 {[%clk 0:00:39]} 55. Kh2 {[%clk 0:00:05]}  g4 {[%clk 0:00:40]} 56. Kh1 {[%clk 0:00:05]}  Bc5 {[%clk 0:00:27]} 57. Kh2 {[%clk 0:00:03]}  Bd6+ {[%clk 0:00:27]} 58. Kg1 {[%clk 0:00:02]}  Rd1+ {[%clk 0:00:27]} 59. Kf2 {[%clk 0:00:02]}  h2 {[%clk 0:00:27]} 60. Ke2 {[%clk 0:00:01]}  h1=Q {[%clk 0:00:26]} 61. Rxf7+ {[%clk 0:00:01]}  Kxf7 {[%clk 0:00:25]} 62. Ke3 {[%clk 0:00:02]}  Qf3# {[%clk 0:00:25]} 0-1


[Site "https://www.chess.com"]

[Event "Titled Tuesday Blitz January 17 Late 2023"]
[White "Suvorov, Luca"]
[Black "Abdyzhaparov, Aidar"]
[WhiteFideId "12977071"]
[BlackFideId "13800361"]
[WhiteElo "2310"]
[BlackElo "1978"]
[Result "0-1"]
[Round "02"]
[TimeControl "180+2"]
[Date "2023.01.17"]
[WhiteClock "0:00:05"]
[BlackClock "0:00:16"]

1. c4 {[%clk 0:03:00]}  g6 {[%clk 0:02:54]} 2. d4 {[%clk 0:02:59]}  Bg7 {[%clk 0:02:55]} 3. e4 {[%clk 0:03:00]}  Nc6 {[%clk 0:02:55]} 4. Ne2 {[%clk 0:02:55]}  e5 {[%clk 0:02:54]} 5. d5 {[%clk 0:02:49]}  Nd4 {[%clk 0:02:54]} 6. Be3 {[%clk 0:02:49]}  c5 {[%clk 0:02:54]} 7. dxc6 {[%clk 0:02:41]}  dxc6 {[%clk 0:02:55]} 8. Nbc3 {[%clk 0:02:40]}  Ne7 {[%clk 0:02:55]} 9. Qd2 {[%clk 0:02:34]}  O-O {[%clk 0:02:50]} 10. Rd1 {[%clk 0:02:34]}  Bg4 {[%clk 0:02:41]} 11. h3 {[%clk 0:01:58]}  Bf3 {[%clk 0:02:41]} 12. Qd3 {[%clk 0:01:52]}  Bxe2 {[%clk 0:02:31]} 13. Bxe2 {[%clk 0:01:49]}  Qb6 {[%clk 0:02:21]} 14. O-O {[%clk 0:01:38]}  Qxb2 {[%clk 0:02:18]} 15. Rfe1 {[%clk 0:01:27]}  Rfd8 {[%clk 0:02:06]} 16. Rb1 {[%clk 0:00:30]}  Qa3 {[%clk 0:01:30]} 17. Nd5 {[%clk 0:00:13]}  Nxe2+ {[%clk 0:01:20]} 18. Qxe2 {[%clk 0:00:07]}  cxd5 {[%clk 0:01:20]} 19. cxd5 {[%clk 0:00:07]}  b6 {[%clk 0:01:14]} 20. Rb3 {[%clk 0:00:04]}  Qa4 {[%clk 0:01:09]} 21. f3 {[%clk 0:00:04]}  Nc8 {[%clk 0:01:07]} 22. Rc1 {[%clk 0:00:04]}  Nd6 {[%clk 0:01:00]} 23. Rc6 {[%clk 0:00:04]}  Nb5 {[%clk 0:00:56]} 24. Qxb5 {[%clk 0:00:03]}  Qxa2 {[%clk 0:00:55]} 25. Kh2 {[%clk 0:00:03]}  h5 {[%clk 0:00:46]} 26. Rbc3 {[%clk 0:00:03]}  h4 {[%clk 0:00:45]} 27. Qf1 {[%clk 0:00:03]}  Qb2 {[%clk 0:00:39]} 28. Rc7 {[%clk 0:00:03]}  a5 {[%clk 0:00:36]} 29. Bc1 {[%clk 0:00:03]}  Qb4 {[%clk 0:00:34]} 30. Bg5 {[%clk 0:00:03]}  Re8 {[%clk 0:00:24]} 31. Bxh4 {[%clk 0:00:03]}  a4 {[%clk 0:00:24]} 32. Be1 {[%clk 0:00:03]}  a3 {[%clk 0:00:22]} 33. Rc1 {[%clk 0:00:03]}  Qb2 {[%clk 0:00:20]} 34. Bf2 {[%clk 0:00:04]}  a2 {[%clk 0:00:20]} 35. Ra1 {[%clk 0:00:04]}  Bh6 {[%clk 0:00:19]} 36. Rc4 {[%clk 0:00:04]}  Bf4+ {[%clk 0:00:17]} 37. g3 {[%clk 0:00:04]}  Be3 {[%clk 0:00:17]} 38. Kg2 {[%clk 0:00:04]}  Bxf2 {[%clk 0:00:16]} 39. Qxf2 {[%clk 0:00:05]}  Qxa1 {[%clk 0:00:16]} 0-1


[Site "https://www.chess.com"]

[Event "Titled Tuesday Blitz January 17 Late 2023"]
[White "Slavin, Alexey"]
[Black "Rodriguez Fontecha, Marcos"]
[WhiteFideId "24104388"]
[BlackFideId "2256576"]
[WhiteElo "2364"]
[BlackElo "2309"]
[Result "0-1"]
[Round "02"]
[TimeControl "180+2"]
[Date "2023.01.17"]
[WhiteClock "0:00:01"]
[BlackClock "0:00:03"]

1. e4 {[%clk 0:03:00]}  e6 {[%clk 0:02:58]} 2. Nf3 {[%clk 0:02:59]}  d5 {[%clk 0:02:53]} 3. e5 {[%clk 0:02:59]}  c5 {[%clk 0:02:51]} 4. b4 {[%clk 0:02:59]}  b6 {[%clk 0:02:51]} 5. a3 {[%clk 0:02:57]}  Ne7 {[%clk 0:02:45]} 6. c3 {[%clk 0:02:57]}  Ng6 {[%clk 0:02:45]} 7. d4 {[%clk 0:02:57]}  Be7 {[%clk 0:02:37]} 8. Bd3 {[%clk 0:02:50]}  a5 {[%clk 0:02:36]} 9. bxc5 {[%clk 0:02:39]}  bxc5 {[%clk 0:02:36]} 10. O-O {[%clk 0:02:37]}  O-O {[%clk 0:02:35]} 11. Re1 {[%clk 0:02:32]}  Ba6 {[%clk 0:02:32]} 12. Bc2 {[%clk 0:02:32]}  Nc6 {[%clk 0:02:13]} 13. Be3 {[%clk 0:02:25]}  cxd4 {[%clk 0:02:09]} 14. cxd4 {[%clk 0:02:24]}  Rc8 {[%clk 0:02:09]} 15. Nbd2 {[%clk 0:02:22]}  f5 {[%clk 0:01:41]} 16. Nf1 {[%clk 0:02:11]}  Rc7 {[%clk 0:01:32]} 17. Ba4 {[%clk 0:02:03]}  Qa8 {[%clk 0:01:26]} 18. Bd2 {[%clk 0:01:49]}  Qa7 {[%clk 0:01:24]} 19. Rc1 {[%clk 0:01:10]}  Rfc8 {[%clk 0:01:23]} 20. Bxc6 {[%clk 0:00:47]}  Rxc6 {[%clk 0:01:24]} 21. Rxc6 {[%clk 0:00:47]}  Rxc6 {[%clk 0:01:23]} 22. Qa4 {[%clk 0:00:46]}  Qc7 {[%clk 0:00:55]} 23. Bxa5 {[%clk 0:00:40]}  Qc8 {[%clk 0:00:55]} 24. Bb4 {[%clk 0:00:39]}  Rc4 {[%clk 0:00:50]} 25. Ne3 {[%clk 0:00:34]}  Rc7 {[%clk 0:00:45]} 26. g3 {[%clk 0:00:28]}  f4 {[%clk 0:00:44]} 27. Bxe7 {[%clk 0:00:22]}  fxe3 {[%clk 0:00:42]} 28. Bd6 {[%clk 0:00:18]}  exf2+ {[%clk 0:00:43]} 29. Kxf2 {[%clk 0:00:18]}  Rc2+ {[%clk 0:00:44]} 30. Kg1 {[%clk 0:00:18]}  Rc1 {[%clk 0:00:44]} 31. Qb4 {[%clk 0:00:16]}  h6 {[%clk 0:00:37]} 32. Rxc1 {[%clk 0:00:16]}  Qxc1+ {[%clk 0:00:36]} 33. Qe1 {[%clk 0:00:15]}  Qc2 {[%clk 0:00:33]} 34. Qf2 {[%clk 0:00:14]}  Qb1+ {[%clk 0:00:31]} 35. Kg2 {[%clk 0:00:14]}  Qe4 {[%clk 0:00:27]} 36. h4 {[%clk 0:00:14]}  Nh8 {[%clk 0:00:23]} 37. Kh3 {[%clk 0:00:13]}  Be2 {[%clk 0:00:20]} 38. Nh2 {[%clk 0:00:13]}  Nf7 {[%clk 0:00:18]} 39. Qf4 {[%clk 0:00:12]}  Qd3 {[%clk 0:00:15]} 40. Ng4 {[%clk 0:00:09]}  Bf1+ {[%clk 0:00:13]} 41. Kh2 {[%clk 0:00:09]}  Qe2+ {[%clk 0:00:12]} 42. Qf2 {[%clk 0:00:09]}  Qxg4 {[%clk 0:00:11]} 43. Qxf1 {[%clk 0:00:08]}  Qxd4 {[%clk 0:00:12]} 44. Qf4 {[%clk 0:00:07]}  Qb2+ {[%clk 0:00:11]} 45. Kh3 {[%clk 0:00:07]}  d4 {[%clk 0:00:12]} 46. Be7 {[%clk 0:00:07]}  d3 {[%clk 0:00:10]} 47. Qg4 {[%clk 0:00:07]}  d2 {[%clk 0:00:07]} 48. Qxe6 {[%clk 0:00:06]}  d1=Q {[%clk 0:00:06]} 49. Qc8+ {[%clk 0:00:07]}  Kh7 {[%clk 0:00:06]} 50. Qf5+ {[%clk 0:00:07]}  Kg8 {[%clk 0:00:05]} 51. Qc8+ {[%clk 0:00:07]}  Nd8 {[%clk 0:00:06]} 52. Bxd8 {[%clk 0:00:06]}  Kh7 {[%clk 0:00:03]} 53. Qf5+ {[%clk 0:00:05]}  Kg8 {[%clk 0:00:04]} 54. Qe6+ {[%clk 0:00:05]}  Kh8 {[%clk 0:00:04]} 55. Qf5 {[%clk 0:00:06]}  Qd5 {[%clk 0:00:03]} 56. Bf6 {[%clk 0:00:02]}  Qg8 {[%clk 0:00:04]} 57. e6 {[%clk 0:00:01]}  Qb6 {[%clk 0:00:03]} 0-1


[Site "https://www.chess.com"]

[Event "Titled Tuesday Blitz January 17 Late 2023"]
[White "Jorajuria Mendoza, Algol"]
[Black "Ozdemir, Serhan Berat"]
[WhiteFideId "5128897"]
[BlackFideId "6374611"]
[WhiteElo "2069"]
[BlackElo "2223"]
[Result "1/2-1/2"]
[Round "02"]
[TimeControl "180+2"]
[Date "2023.01.17"]
[WhiteClock "0:00:08"]
[BlackClock "0:00:05"]

1. e4 {[%clk 0:03:00]}  c5 {[%clk 0:02:59]} 2. Nf3 {[%clk 0:03:00]}  e6 {[%clk 0:03:00]} 3. g3 {[%clk 0:02:56]}  d5 {[%clk 0:02:58]} 4. exd5 {[%clk 0:02:55]}  exd5 {[%clk 0:02:59]} 5. Bg2 {[%clk 0:02:56]}  Nc6 {[%clk 0:03:00]} 6. O-O {[%clk 0:02:56]}  Nf6 {[%clk 0:02:56]} 7. d4 {[%clk 0:02:57]}  Be7 {[%clk 0:02:36]} 8. dxc5 {[%clk 0:02:55]}  Bxc5 {[%clk 0:02:37]} 9. Re1+ {[%clk 0:02:53]}  Be6 {[%clk 0:02:37]} 10. Ng5 {[%clk 0:02:39]}  O-O {[%clk 0:02:38]} 11. Nc3 {[%clk 0:02:27]}  Qb6 {[%clk 0:01:57]} 12. Qd2 {[%clk 0:01:48]}  Ng4 {[%clk 0:01:42]} 13. Nh3 {[%clk 0:01:48]}  Bb4 {[%clk 0:01:01]} 14. a3 {[%clk 0:01:42]}  Qa5 {[%clk 0:00:42]} 15. axb4 {[%clk 0:01:35]}  Qxa1 {[%clk 0:00:40]} 16. Nxd5 {[%clk 0:01:29]}  Bxd5 {[%clk 0:00:35]} 17. Bxd5 {[%clk 0:01:30]}  Rad8 {[%clk 0:00:29]} 18. Qg5 {[%clk 0:01:27]}  Nf6 {[%clk 0:00:18]} 19. Nf4 {[%clk 0:01:06]}  Rfe8 {[%clk 0:00:13]} 20. Rxe8+ {[%clk 0:00:49]}  Rxe8 {[%clk 0:00:14]} 21. Nd3 {[%clk 0:00:49]}  h6 {[%clk 0:00:10]} 22. Qf5 {[%clk 0:00:41]}  Nxd5 {[%clk 0:00:08]} 23. Qxd5 {[%clk 0:00:40]}  Nxb4 {[%clk 0:00:06]} 24. Qd7 {[%clk 0:00:30]}  Rf8 {[%clk 0:00:04]} 25. Kg2 {[%clk 0:00:17]}  Nxd3 {[%clk 0:00:04]} 26. Be3 {[%clk 0:00:18]}  Nxb2 {[%clk 0:00:03]} 27. Qxb7 {[%clk 0:00:18]}  Qa4 {[%clk 0:00:03]} 28. Bxa7 {[%clk 0:00:17]}  Nc4 {[%clk 0:00:02]} 29. Bc5 {[%clk 0:00:16]}  Na5 {[%clk 0:00:02]} 30. Qd5 {[%clk 0:00:14]}  Qc6 {[%clk 0:00:01]} 31. Qxc6 {[%clk 0:00:13]}  Nxc6 {[%clk 0:00:02]} 32. Bxf8 {[%clk 0:00:13]}  Kxf8 {[%clk 0:00:03]} 33. Kf3 {[%clk 0:00:14]}  Ke7 {[%clk 0:00:04]} 34. Ke4 {[%clk 0:00:15]}  Kd6 {[%clk 0:00:04]} 35. c3 {[%clk 0:00:14]}  Kc5 {[%clk 0:00:04]} 36. Kd3 {[%clk 0:00:13]}  Kd5 {[%clk 0:00:04]} 37. h3 {[%clk 0:00:13]}  Ne5+ {[%clk 0:00:05]} 38. Ke3 {[%clk 0:00:13]}  Kc4 {[%clk 0:00:05]} 39. Ke4 {[%clk 0:00:13]}  Nd3 {[%clk 0:00:06]} 40. f4 {[%clk 0:00:10]}  Kxc3 {[%clk 0:00:06]} 41. f5 {[%clk 0:00:10]}  Kc4 {[%clk 0:00:05]} 42. f6 {[%clk 0:00:10]}  g6 {[%clk 0:00:04]} 43. h4 {[%clk 0:00:07]}  h5 {[%clk 0:00:04]} 44. Kf3 {[%clk 0:00:07]}  Kd5 {[%clk 0:00:03]} 45. g4 {[%clk 0:00:07]}  Ne5+ {[%clk 0:00:03]} 46. Kf4 {[%clk 0:00:07]}  Nxg4 {[%clk 0:00:04]} 47. Kg5 {[%clk 0:00:08]}  Ke5 {[%clk 0:00:05]} 1/2-1/2


[Site "https://www.chess.com"]

[Event "Titled Tuesday Blitz January 17 Late 2023"]
[White "Vovk, Orest"]
[Black "Coelho, Ramyres Santana"]
[WhiteFideId "14113490"]
[BlackFideId "2120690"]
[WhiteElo "2315"]
[BlackElo "1981"]
[Result "1-0"]
[Round "02"]
[TimeControl "180+2"]
[Date "2023.01.17"]
[WhiteClock "0:00:52"]
[BlackClock "0:00:24"]

1. h4 {[%clk 0:02:53]}  e5 {[%clk 0:02:57]} 2. h5 {[%clk 0:02:52]}  Bc5 {[%clk 0:02:57]} 3. Nf3 {[%clk 0:02:48]}  e4 {[%clk 0:02:56]} 4. d4 {[%clk 0:02:44]}  Bd6 {[%clk 0:02:41]} 5. Ng5 {[%clk 0:02:40]}  Nf6 {[%clk 0:02:39]} 6. h6 {[%clk 0:02:40]}  g6 {[%clk 0:02:37]} 7. Nc3 {[%clk 0:02:38]}  Qe7 {[%clk 0:02:29]} 8. Rh4 {[%clk 0:02:30]}  Bb4 {[%clk 0:02:09]} 9. a3 {[%clk 0:02:21]}  Bxc3+ {[%clk 0:02:06]} 10. bxc3 {[%clk 0:02:21]}  d5 {[%clk 0:02:07]} 11. Bf4 {[%clk 0:02:20]}  Nh5 {[%clk 0:02:02]} 12. Rxh5 {[%clk 0:01:28]}  gxh5 {[%clk 0:02:01]} 13. e3 {[%clk 0:01:27]}  Bg4 {[%clk 0:02:00]} 14. Qb1 {[%clk 0:01:27]}  c6 {[%clk 0:01:58]} 15. c4 {[%clk 0:01:23]}  f6 {[%clk 0:01:50]} 16. Nh3 {[%clk 0:01:20]}  Bxh3 {[%clk 0:01:50]} 17. gxh3 {[%clk 0:01:19]}  b6 {[%clk 0:01:43]} 18. cxd5 {[%clk 0:01:18]}  cxd5 {[%clk 0:01:44]} 19. Qb5+ {[%clk 0:01:15]}  Qd7 {[%clk 0:01:41]} 20. Rb1 {[%clk 0:01:14]}  Qxb5 {[%clk 0:01:39]} 21. Rxb5 {[%clk 0:01:14]}  Nd7 {[%clk 0:01:30]} 22. Rxd5 {[%clk 0:01:13]}  a6 {[%clk 0:01:14]} 23. Bg2 {[%clk 0:01:07]}  O-O-O {[%clk 0:01:01]} 24. Bxe4 {[%clk 0:01:07]}  Rhe8 {[%clk 0:00:57]} 25. Bf5 {[%clk 0:01:06]}  Re7 {[%clk 0:00:52]} 26. Bd6 {[%clk 0:00:59]}  Rf7 {[%clk 0:00:48]} 27. Be6 {[%clk 0:00:57]}  Rdf8 {[%clk 0:00:36]} 28. Bxf8 {[%clk 0:00:55]}  Rxf8 {[%clk 0:00:37]} 29. Rxd7 {[%clk 0:00:54]}  Kb8 {[%clk 0:00:29]} 30. Rxh7 {[%clk 0:00:53]}  Re8 {[%clk 0:00:29]} 31. Bf5 {[%clk 0:00:52]}  Rg8 {[%clk 0:00:27]} 32. Rg7 {[%clk 0:00:52]}  Rh8 {[%clk 0:00:24]} 33. h7 {[%clk 0:00:52]} 1-0


[Site "https://www.chess.com"]

[Event "Titled Tuesday Blitz January 17 Late 2023"]
[White "Slovineanu, Viacheslav"]
[Black "Mareco, Sandro"]
[WhiteFideId "13900510"]
[BlackFideId "112275"]
[WhiteElo "2412"]
[BlackElo "2633"]
[Result "1/2-1/2"]
[Round "02"]
[TimeControl "180+2"]
[Date "2023.01.17"]
[WhiteClock "0:00:05"]
[BlackClock "0:00:05"]

1. d4 {[%clk 0:02:59]}  f5 {[%clk 0:02:56]} 2. Nc3 {[%clk 0:02:58]}  d5 {[%clk 0:02:56]} 3. Bg5 {[%clk 0:02:53]}  c6 {[%clk 0:02:49]} 4. Qd2 {[%clk 0:02:49]}  Nd7 {[%clk 0:02:48]} 5. e3 {[%clk 0:02:45]}  Ngf6 {[%clk 0:02:48]} 6. Bd3 {[%clk 0:02:38]}  e6 {[%clk 0:02:47]} 7. Nf3 {[%clk 0:02:24]}  Be7 {[%clk 0:02:43]} 8. O-O {[%clk 0:02:19]}  O-O {[%clk 0:02:42]} 9. Bf4 {[%clk 0:01:48]}  Ne4 {[%clk 0:02:40]} 10. Bxe4 {[%clk 0:01:45]}  fxe4 {[%clk 0:02:39]} 11. Ne5 {[%clk 0:01:45]}  Nxe5 {[%clk 0:02:37]} 12. Bxe5 {[%clk 0:01:45]}  Bd6 {[%clk 0:02:29]} 13. Bxd6 {[%clk 0:01:29]}  Qxd6 {[%clk 0:02:29]} 14. Ne2 {[%clk 0:01:25]}  e5 {[%clk 0:02:13]} 15. dxe5 {[%clk 0:01:19]}  Qxe5 {[%clk 0:02:14]} 16. c4 {[%clk 0:01:06]}  Be6 {[%clk 0:02:12]} 17. cxd5 {[%clk 0:01:06]}  Bxd5 {[%clk 0:02:10]} 18. Qd4 {[%clk 0:00:59]}  Qg5 {[%clk 0:01:46]} 19. Nc3 {[%clk 0:00:46]}  Rad8 {[%clk 0:01:27]} 20. Nxd5 {[%clk 0:00:30]}  Rxd5 {[%clk 0:01:13]} 21. Qxe4 {[%clk 0:00:28]}  Rd2 {[%clk 0:01:10]} 22. Rad1 {[%clk 0:00:25]}  Rxb2 {[%clk 0:01:01]} 23. Qe6+ {[%clk 0:00:22]}  Kh8 {[%clk 0:01:01]} 24. Rd7 {[%clk 0:00:18]}  h6 {[%clk 0:00:54]} 25. Qe7 {[%clk 0:00:13]}  Qxe7 {[%clk 0:00:44]} 26. Rxe7 {[%clk 0:00:14]}  Kg8 {[%clk 0:00:42]} 27. h4 {[%clk 0:00:12]}  Rf7 {[%clk 0:00:41]} 28. Re8+ {[%clk 0:00:11]}  Kh7 {[%clk 0:00:42]} 29. f4 {[%clk 0:00:09]}  Rxa2 {[%clk 0:00:41]} 30. e4 {[%clk 0:00:10]}  b5 {[%clk 0:00:37]} 31. e5 {[%clk 0:00:10]}  Re2 {[%clk 0:00:35]} 32. f5 {[%clk 0:00:07]}  b4 {[%clk 0:00:32]} 33. e6 {[%clk 0:00:07]}  Rb7 {[%clk 0:00:30]} 34. Rf8 {[%clk 0:00:05]}  b3 {[%clk 0:00:27]} 35. Rf7 {[%clk 0:00:05]}  Rb8 {[%clk 0:00:25]} 36. f6 {[%clk 0:00:06]}  b2 {[%clk 0:00:23]} 37. Rxg7+ {[%clk 0:00:05]}  Kh8 {[%clk 0:00:23]} 38. e7 {[%clk 0:00:05]}  b1=Q {[%clk 0:00:17]} 39. Rxb1 {[%clk 0:00:05]}  Rxb1+ {[%clk 0:00:17]} 40. Kh2 {[%clk 0:00:06]}  Rb8 {[%clk 0:00:14]} 41. Rf7 {[%clk 0:00:04]}  Kg8 {[%clk 0:00:14]} 42. Rg7+ {[%clk 0:00:04]}  Kh8 {[%clk 0:00:14]} 43. Rf7 {[%clk 0:00:04]}  Rg8 {[%clk 0:00:10]} 44. Rf8 {[%clk 0:00:04]}  Rxg2+ {[%clk 0:00:04]} 45. Kh1 {[%clk 0:00:04]}  Rg1+ {[%clk 0:00:04]} 46. Kh2 {[%clk 0:00:04]}  Rg2+ {[%clk 0:00:04]} 47. Kh1 {[%clk 0:00:05]}  Rg1+ {[%clk 0:00:05]} 48. Kh2 {[%clk 0:00:05]}  Rg2+ {[%clk 0:00:05]} 1/2-1/2


[Site "https://www.chess.com"]